Cogmind - Beta 16 @@@ ROGUE MODE // 2025.11.07 @ 20:13:08 Player: FR-13D Result: Destroyed self with Mini Grenade Launcher Performance ------------- Evolutions (1) 500 Regions Visited (2) 400 Robots Destroyed (41) 205 Value Destroyed (705) 705 Prototype IDs (6) 120 Alien Tech Used (0) 0 Bonus (0) 0 TOTAL SCORE: 1930 Bonus ------- None Cogmind --------- Core Integrity 0/400 Matter 218/300 Energy 100/100 System Corruption 0% Temperature Cool (24) Movement Core (50) Location -9/Materials Parts ------- > --- POWER (1) -------- (None) > --- PROPULSION (4) --- (None) > --- UTILITY (2) ------ Seismic Detector > --- WEAPON (2) ------- (None) > --- INVENTORY (5) ---- Visual Processing Unit Improved Terrain Scanner ECM Suite Peak State ------------ > --- POWER ------------ Improved Ion Engine > --- PROPULSION ------- Backup Propulsion I Improved Hover Unit Flight Unit > --- UTILITY ---------- Weight Redist. System Seismic Detector > --- WEAPON ----------- Mini Grenade Launcher Mining Claw > --- INVENTORY -------- Visual Processing Unit Improved Terrain Scanner ECM Suite [Rating: 12] Favorites ----------- Power Light Ion Engine Engine Light Ion Engine Propulsion Flight Unit Leg Aluminum Leg Hover Unit Hover Unit Flight Unit Flight Unit Utility Seismic Detector Device Seismic Detector Storage Small Storage Unit Protection Medium Armor Plating Weapon Assault Rifle Energy Gun Medium Laser Ballistic Gun Assault Rifle Launcher Mini Grenade Launcher Slashing Weapon Mining Claw Build | -11 -10 -9 ------- Run | Yrd Mat Mat Slots Evolved 2 | . . 2 Power . | . . . Propulsion 2 | . . 2 Utility . | . . . Weapon . | . . . Parts Attached 33 | 7 8 18 Power 5 | 1 1 3 Engine 5 | 1 1 3 Core . | . . . Reactor . | . . . Propulsion 9 | 2 2 5 Treads . | . . . Leg 2 | 2 . . Wheel . | . . . Hover 4 | . 2 2 Flight 3 | . . 3 Utility 10 | 2 3 5 Device 5 | 1 2 2 Storage 1 | 1 . . Processor . | . . . Hackware . | . . . Protection 4 | . 1 3 Artifact . | . . . Weapon 9 | 2 2 5 Energy Gun 2 | 1 . 1 Energy Cannon . | . . . Ballistic Gun 4 | 1 2 1 Ballistic Cannon . | . . . Launcher 2 | . . 2 Special Weapon . | . . . Impact Weapon . | . . . Slashing Weapon 1 | . . 1 Piercing Weapon . | . . . Special Melee Weapon . | . . . Unidentified Prototypes . | . . . Parts Lost 16 | . 2 14 Power 2 | . . 2 Propulsion 8 | . 1 7 Utility 3 | . 1 2 Weapon 3 | . . 3 Highest Loss Streak 8 | . 1 8 To Critical Strikes . | . . . Average Backups 4 | 2 4 4 Power . | 1 1 . Propulsion . | 1 . . Utility 2 | . 2 3 Weapon . | . . . Tool/Special . | . . . Unused Backups 10 | . 7 3 Power 3 | . 3 . Propulsion 4 | . 4 . Utility 3 | . . 3 Weapon . | . . . Tool/Special . | . . . Average Slot Usage (%) 87 | . 97 83 Engine 11 | . 14 10 Leg 2 | . 6 . Hover 12 | . 21 8 Flight 13 | . . 20 Device 13 | . 14 12 Storage 1 | . 3 . Protection 8 | . 7 8 Energy Gun 1 | . 5 . Ballistic Gun 16 | . 22 13 Launcher 4 | . . 6 Slashing Weapon 1 | . . 2 Peak Build Rating 12 | 7 9 12 Average Rating 8 | 5 7 9 On Entrance 4 | . 7 6 Avg Prop Armor Cover (%) 3 | . . 3 Naked Turns . | . . . Heaviest Build 15 | 14 14 15 Greatest Support 20 | 20 20 19 Greatest Overweight (x) 4 | 1 1 4 Average Overweight (x) . | . . . Largest Inventory Capacity 8 | 8 8 5 Average Capacity 5 | 7 5 5 Most Carried 6 | 5 6 5 Average Carried 4 | 2 4 4 Final Capacity 8 | 8 5 5 Final Carried 5 | 5 5 3 Class Distribution -------------------- 51% | Mutant 48% | Scavenger-Mutant Dominant Class ---------------- Mutant | -10/Materials Scavenger-Mutant | -9/Materials Resources | -11 -10 -9 ----------- Run | Yrd Mat Mat Matter Collected 873 | 277 188 408 Remotely . | . . . Salvage Created 1142 | 96 458 588 Parts 99 | 8 34 57 Haulers Intercepted 3 | . 2 1 Recyclers Shooed 4 | . 1 3 Parts Field Recycled . | . . . Retrieved Matter . | . . . Parts Self-Destructed . | . . . Prevented . | . . . Parts Restored . | . . . Kills | -11 -10 -9 ------- Run | Yrd Mat Mat Combat Hostiles Destroyed 27 | . 7 20 Melee 1 | . . 1 Guns 16 | . 7 9 AOE 10 | . . 10 Classes Destroyed 8 | 2 3 3 Worker 1 | . . 1 Tunneler 6 | 2 3 1 Hauler 3 | . 2 1 Recycler 3 | 1 2 . Watcher 1 | . . 1 Swarmer 16 | . 6 10 Grunt 6 | . 1 5 Sentry 5 | . . 5 Best Kill Streak 5 | 3 3 5 Combat Bots Only 5 | . 3 5 Max Kills in Single Turn 3 | 1 1 3 Gunslinging . | . . . Exploded 3 | . . 3 Melee 1 | . . 1 Uniques/NPCs Destroyed . | . . . Combat | -11 -10 -9 -------- Run | Yrd Mat Mat Hostile Shots Fired 160 | . 28 132 Missed 55 | . 13 42 Hits 105 | . 15 90 Projectile 105 | . 15 90 Critical Strikes 3 | . . 3 Damage Taken 1578 | . 188 1390 Core 426 | . 11 415 Absorbed by Shields . | . . . Core Remaining (%) 97 | 100 95 . Volleys Fired 103 | 7 50 46 Largest 2 | 2 2 2 Hottest 70 | 70 70 50 Shots Fired 192 | 14 100 78 Gun 174 | 14 100 60 Cannon . | . . . Launcher 18 | . . 18 Special . | . . . Kinetic 141 | 7 79 55 Thermal 28 | 7 21 . Explosive 18 | . . 18 Electromagnetic 5 | . . 5 Robot Hit Streak 9 | 3 9 9 Robot Miss Streak 6 | 3 6 3 Penetration Max . | . . . Secondary Targets 2 | . . 2 Max Gunslinging Chain 1 | . . 1 Shots Hit Robots 119 | 6 61 52 Core Hits 56 | 4 21 31 Critical Kills . | . . . Critical Parts Destroyed . | . . . Critical Strikes 3 | . 2 1 Burn 2 | . 2 . Corrupt 1 | . . 1 Melee Attacks 10 | . . 10 Impact . | . . . Slashing 10 | . . 10 Piercing . | . . . Sneak Attacks 3 | . . 3 Combat Hostiles . | . . . Follow-up Attacks . | . . . Damage Inflicted 2234 | 73 675 1486 Guns 1219 | 73 673 473 Cannons . | . . . Explosions 762 | . . 762 Melee 251 | . . 251 Ramming 2 | . 2 . Kinetic 928 | 22 483 423 Thermal 241 | 51 190 . Explosive 762 | . . 762 Electromagnetic 50 | . . 50 Impact . | . . . Slashing 251 | . . 251 Piercing . | . . . Highest Corruption . | . . . Average Corruption . | . . . Corruption Purged . | . . . Corruption Blocked . | . . . Overload Shots . | . . . Overflow Damage 139 | . . 139 Projectiles . | . . . Explosions 119 | . . 119 Melee 20 | . . 20 Knockbacks . | . . . Impact . | . . . Kinetic . | . . . Secondary . | . . . Self-Inflicted Damage 230 | . 1 229 Shots 9 | . . 9 Rammed 1 | . 1 . Targets Rammed 1 | . 1 . Kicked . | . . . Crushed . | . . . Highest Temperature 184 | 100 184 41 Average Temperature 34 | 52 39 9 Received Heat Transfer 390 | . 24 366 Siege Activations . | . . . Martial Activations . | . . . Shielding Activations . | . . . Robots Disrupted . | . . . Combat Hostiles . | . . . Robots Corrupted . | . . . Combat Hostiles . | . . . Parts Fried . | . . . Impact Corruptions . | . . . Robots Melted . | . . . Combat Hostiles . | . . . Parts Melted 2 | . 2 . Heat Transferred 851 | 148 703 . Parts Sabotaged . | . . . Parts Stolen . | . . . Parts Stripped . | . . . Power Chain Reactions . | . . . Alert | -11 -10 -9 ------- Run | Yrd Mat Mat Maximum Alert Level 1 | . . 1 Low Security (%) 98 | 100 100 97 Level 1 1 | . . 2 Level 2 . | . . . Level 3 . | . . . Level 4 . | . . . Level 5 . | . . . High Security . | . . . Max Security . | . . . Peak Influence 236 | 5 87 236 Initial 27 | . . 27 Average 42 | 1 33 50 Influence Increases 1118 | 15 295 808 Destroy 0b10 Robot/C 540 | . 140 400 Destroy 0b10 Robot/NC 70 | 15 35 20 Destroy Leader 138 | . 24 114 Successful Hack 30 | . 6 24 Disable Machine 30 | . . 30 Destroy Structure 115 | . . 115 Lose Combat Pursuer 195 | . 90 105 Influence Decreases 896 | 15 229 652 Entered New Map 39 | . . 39 Time Decay 705 | 15 209 481 Lost Part 152 | . 20 132 Squads Dispatched 3 | . 1 2 Investigation 2 | . 1 1 Extermination . | . . . Reinforcement 1 | . . 1 Assault . | . . . Garrison . | . . . Intercept . | . . . Searches Triggered . | . . . Construction Impeded . | . . . Haulers Reinforced . | . . . Active Scanning Responses . | . . . Cargo Convoy Interrupts . | . . . Stealth | -11 -10 -9 --------- Run | Yrd Mat Mat Distress Signals 3 | . . 3 Communications Jammed . | . . . Distress Signals . | . . . Times Spotted 52 | . 18 34 Peak Tracking Total 9 | . 4 9 Tactical Retreats 9 | . 4 5 Traps | -11 -10 -9 ------- Run | Yrd Mat Mat Traps Triggered 5 | . 2 3 Indirectly . | . . . Trap Hack Attempts . | . . . Triggered . | . . . Disarmed . | . . . Reprogrammed . | . . . Reused . | . . . Traps Extracted . | . . . Installed . | . . . Triggered . | . . . Machines | -11 -10 -9 ---------- Run | Yrd Mat Mat Machines Disabled 2 | . . 2 Max in Single Turn 1 | . . 1 Machines Repaired . | . . . Machines Dismantled . | . . . Machines Sabotaged . | . . . Overloaded Fab Kills . | . . . Hacking | -11 -10 -9 --------- Run | Yrd Mat Mat Machines Accessed 11 | . 4 7 Terminals 9 | . 4 5 Fabricators . | . . . Repair Stations 1 | . . 1 Recycling Units . | . . . Scanalyzers 1 | . . 1 Garrison Access . | . . . Total Hacks 25 | . 7 18 Successful 17 | . 4 13 Failed 7 | . 3 4 Catastrophic 3 | . 2 1 Database Lockouts 1 | . . 1 Manual 18 | . 7 11 Terminals 20 | . 7 13 Fabricators . | . . . Repair Stations 1 | . . 1 Recycling Units . | . . . Scanalyzers 4 | . . 4 Garrison Access . | . . . Terminal Hacks 9 | . 4 5 Robot Analysis 4 | . 3 1 Prototype ID Bank 3 | . 1 2 Maintenance Status 1 | . . 1 Security Status 1 | . . 1 Fabricator Hacks . | . . . Repair Station Hacks 1 | . . 1 Refit 1 | . . 1 Recycling Unit Hacks . | . . . Scanalyzer 3 | . . 3 Retrieve Study 3 | . . 3 Garrison Access Hacks . | . . . Unauthorized Hacks 4 | . . 4 Terminals 4 | . . 4 Botnet 4 | . . 4 Fabricators . | . . . Repair Stations . | . . . Recycling Units . | . . . Scanalyzers . | . . . Garrison Access . | . . . Data Cores Recovered . | . . . Used . | . . . Hacking Detections 10 | . 4 6 Full Trace Events . | . . . Feedback Events . | . . . Feedback Blocked . | . . . Robot Schematics Acquired . | . . . Robots Built . | . . . Authchips . | . . . Time . | . . . Total Robot Build Rating . | . . . Part Schematics Acquired . | . . . Parts Built . | . . . Authchips . | . . . Time . | . . . Total Part Build Rating . | . . . Part Studies Acquired 3 | . . 3 Parts Repaired . | . . . Time . | . . . Parts Recycled . | . . . Recycled Matter . | . . . Retrieved Matter . | . . . Retrieved Components . | . . . Parts Scanalyzed . | . . . Part Schematics Acquired . | . . . Parts Damaged . | . . . Bothacking | -11 -10 -9 ------------ Run | Yrd Mat Mat Used RIF Installer . | . . . Robots Hacked . | . . . Non-combat . | . . . Combat . | . . . Robot Hacks Applied . | . . . Relay Couplers Released . | . . . Fabnet Peak Effective % . | . . . Robots Rewired . | . . . Allies Hacked . | . . . Hacks Repelled . | . . . Allies | -11 -10 -9 -------- Run | Yrd Mat Mat Total Allies . | . . . Largest Group . | . . . Highest-Rated Group . | . . . Highest-Rated Ally . | . . . Total Orders . | . . . Ally Attacks . | . . . Total Damage . | . . . Kills . | . . . Allies Corrupted . | . . . Allies Melted . | . . . Intel | -11 -10 -9 ------- Run | Yrd Mat Mat Active Infowar (turns) 2039 | 36 599 1404 Terrain 80 | . 80 . Seismic 2039 | 36 599 1404 Robot Analysis Total 4 | . 3 1 Derelict Logs Recovered . | . . . Drone Launches . | . . . Drone Recoveries . | . . . Exploration | -11 -10 -9 ------------- Run | Yrd Mat Mat Turns Passed 2223 | 123 665 1435 Spaces Moved 1780 | 77 671 1032 Core 51 | 10 . 41 Treads . | . . . Legs 154 | 67 87 . Wheels . | . . . Hover 929 | . 584 345 Flight 646 | . . 646 Fastest Speed 40 | 50 56 40 Average Speed 95 | 114 67 112 Slowest Speed 280 | 120 120 280 Overloaded Moves . | . . . Propulsion Burnouts . | . . . Robots Hopped . | . . . Potential Cave-ins . | . . . Cave-ins Triggered . | . . . Exploration Rate (%) 42 | 4 76 47 Regions Visited 2 Branch Regions . Pre-discovered Areas . | . . . Known Exits Taken . | . . . Unknown Exits Taken 2 | 1 1 . Scrap Searched . | . . . Spaces Dug 8 | . . 8 Terrain Destroyed 138 | . . 138 Melee . | . . . Projectile . | . . . AOE 138 | . . 138 Terrain Rammed . | . . . Walls Destroyed . | . . . Machines Disabled . | . . . Actions | -11 -10 -9 --------- Run | Yrd Mat Mat Total 2109 | 96 801 1212 Wait 127 | . 42 85 Move 1778 | 76 670 1032 Hop . | . . . Pick Up 22 | 6 12 4 Fast Attach 19 | 6 3 10 Attach 5 | 1 1 3 Detach 3 | . 2 1 Swap 14 | . 5 9 Drop 27 | . 15 12 Fire 103 | 7 50 46 Melee 10 | . . 10 Ram 1 | . 1 . Kick . | . . . Crush . | . . . Escape Stasis . | . . . Rewire . | . . . Trap . | . . . Miscellaneous . | . . . Route ------- -11/Scrapyard -10/Materials (discovered 2 exits: *Mat / [*Sub]) -9/Materials (discovered 2 exits: [*Mat] / [*Min]) History --------- Turn | Location | Event 30 | -11/Scrapyard | Discovered new exit (range 15) 124 | -11/Scrapyard | Entered Materials 323 | -10/Materials | Build established: Mutant 596 | -10/Materials | Discovered new exit (range 8) 732 | -10/Materials | Discovered new exit (range 10) 789 | -10/Materials | Entered another Materials area 789 | -9/Materials | Evolved 2 slots: Propulsion x2 1264 | -9/Materials | Build established: Scavenger-Mutant 1762 | -9/Materials | Discovered new exit (range 14) 1992 | -9/Materials | Discovered new exit (range 9) 2022 | -9/Materials | Core integrity fell below 50% 2058 | -9/Materials | Central database locked down 2186 | -9/Materials | Core integrity fell below 20% 2224 | -9/Materials | Destroyed self with Mini Grenade Launcher Last Messages --------------- 02192_ G-34 Mercenary destroyed. 02194_ K-01 Serf collects debris. 02196_ The unstable cave ceiling collapses. 02196_ 35 Matter crushed. 02197_ K-01 Serf collects debris. 02198_ Mining Claw+ destroyed. 02201_ K-01 Serf collects debris. 02207_ Acquired Hvy. EM Pulse Gun. 02212_ K-01 Serf collects debris. 02215_ The unstable cave ceiling collapses. 02215_ K-01 Serf collects debris. 02217_ Flight Unit+ destroyed. 02221_ Hvy. EM Pulse Gun destroyed. 02222_ Destroyed Imp. Heat Sink. 02222_ Imp. Ion Engine destroyed. 02222_ Destroyed Imp. Ion Engine. 02224_ U-05 Engineer lays Concrete. 02224_ G-47 Trooper destroyed. 02224_ Mni. Grenade Launcher+ destroyed. 02224_ Destroyed Mni. Grenade Launcher+. Map ----- +----------------------------------------------------+ | ??????????????????????????????? + +??????????## | | ??????????????????????????????? # #?????????## | | ??????????????????????????????## %[ ##????##? ## | | ?????????????????????????????? *%%= ####? # | | ???????????????????????????#??? *= ?? # | | ???????????????????????????+ ?? = ??? T + | | ???????????????????????????# ?? ???? # | | ???????????????????????????# ?? [* ????? # | | ???????????????????????????# ## [ ####??# ## | | ???????????????????????????# # % #??# ### | | ???????????????????????????# " #??# #?? | | ???????????????????????????# # " " #??# #?? | | ???????????????????????????? # """ #?## ##? | | ???????????????????????????? # #?# ## | | ???????????????????????????? # """ ### | | ???????????????????????????? # """ / | | ???????????????????????????? # """ ### [ | | ????????????????????????????# ## #?# ## | | ????????????????????????????# ### ###########+#### | | ????????????????????????????# ## ##???# | | ???????????????????????????## # #???# | | ??????????????????????????## !k #???# """ """ | | ???????????????????####### #[ #???# """ """ | | ???????????????????# *# #????# """ """ | | ???????????????????# Y # ##????# | | ???????????????????# @ % # #?????# | | ???????????????????# " " # #?????# | | ???????????????????# "R" # #?????########## | | ???????????????????# """ # #?????????###### | | ?#######???????????######+## ########### | | ## #???????????###### + | | ############# # ######## ##### | | < #??????# #???###### | | ### #####+#######?# #????????? | | ## #?# ###+#######??? | | ?#######?# """ """ # T #??? | | ?????????############# # """ "R" # #??? | | ????????????????????#### """ " " + #??? | | ???????????????????????#! # #??? | | ???????????????????????########################??? | | | | | | | | | | | | | | | | | | | | | +----------------------------------------------------+ Best States ------------- Heat Dissipation 28 Energy Generation 12 Energy Capacity 265 Matter Stores 300 Matter Capacity 300 Sight Range 16 Terrain Scan Range 16 Terrain Scan Density 10 Additional Mass Support 6 Armor Coverage 225 Evasion (%) 62 Item Schematics ----------------- None Robot Schematics ------------------ None Fabricated ------------ Nothing Repaired ---------- Nothing Studied --------- Flight Unit | -9/Materials | Hacked Mni. Grenade Launcher | -9/Materials | Hacked Mining Claw | -9/Materials | Hacked Alien Tech Used ----------------- None Achievements -------------- Fitting Room Challenges ------------ None Game ------ Seed ShadingLightningCompressor Manual? 0 Play Time 00:26:34 Cumulative 66.8 hours Start 2025.11.07 @ 19:47:52 End 2025.11.07 @ 20:13:08 Sessions 1 Manual Loads 0 Difficulty Rogue Special Mode None Game No. 78 Rogue 78 Adventurer 0 Explorer 0 Win Type - Total 0 Types 0/0/0/0/0/0/0/0/0/0 Lore% 53 Gallery% 36 Achievement% 25 Wizard Run 0 Options --------- Layout 0 ASCII 0 Keyboard 1 Movement Vi Keybinds 0 Fullscreen 2 Font 18/SmallcapsGlow Map View 76x50 Zoom Use 0% Tactical HUD 1 Map Filters NONE Filters NONE Steam 1 RUN: 3254fd1c-8146-42d9-9f0f-e340d9ee3725